fUSD/lending_fUSD_20260131
["ID","MTS","AMOUNT","RATE_DAILY","PERIOD"]
[404093812,1769819432071,-4625.7895929,0.00016572,2]
[404093826,1769819432119,-3528.14577167,0.00016572,2]
[404093828,1769819432130,-1143.368815,0.00016572,2]
[404093831,1769819432141,-4472.23749681,0.00016572,2]
[404093833,1769819432150,-190.04,0.00016582,2]
[404093835,1769819432159,-151.0,0.00016682,2]
[404093837,1769819432168,-506.5,0.00016683,2]
[404093839,1769819432177,-151.0,0.00016683,2]
[404093840,1769819432186,-151.0,0.00016683,2]
[404093843,1769819432195,-151.0,0.00016685,2]
[404093844,1769819432204,-151.0,0.00016685,2]
[404093846,1769819432213,-151.0,0.00016687,2]
[404093849,1769819432223,-236.22711168,0.00016721,2]
[404093851,1769819432233,-503.58085307,0.0001681,2]
[404093853,1769819432242,-151.0,0.0001681,2]
[404093854,1769819432251,-151.0,0.0001681,2]
[404093857,1769819432260,-151.0,0.0001681,2]
[404093858,1769819432270,-151.0,0.0001681,2]
[404093861,1769819432285,-151.0,0.0001681,2]
[404093863,1769819432295,-151.0,0.0001681,2]
[404093864,1769819432307,-151.0,0.0001681,2]
[404093866,1769819432318,-151.0,0.0001681,2]
[404093869,1769819432327,-151.0,0.0001681,2]
[404093871,1769819432337,-151.0,0.0001681,2]
[404093873,1769819432347,-151.0,0.0001681,2]
[404093874,1769819432357,-12818.38064123,0.00016821,2]
[404093877,1769819432368,-809.42221562,0.00016821,2]
[404093879,1769819432380,-1330.0,0.00016821,2]
[404093881,1769819432393,-355.66993725,0.00016821,2]
[404093883,1769819432403,-345.51780687,0.00016821,2]
[404093886,1769819432415,-532.82685681,0.00016821,2]
[404093888,1769819432426,-2670.0,0.00016821,2]
[404093916,1769819440145,-151.0,0.00016786,2]
[404093917,1769819440155,-575.33180452,0.00016821,2]
[404093930,1769819446395,-547.86314549,0.00016821,2]
[404093931,1769819446406,-1051.62888184,0.00016821,2]
[404093932,1769819446417,-2735.93457597,0.00016821,2]
[404093933,1769819446432,-822.78396786,0.00016821,2]
[404093934,1769819446461,-774.05404123,0.00016821,2]
[404093935,1769819446472,-32781.43411693,0.00016821,2]
[404093936,1769819446514,-8507.24236572,0.00016821,2]
[404093937,1769819446526,-84.38684266,0.00016821,2]
[404093938,1769819446537,-1920.84506747,0.00016874,2]
[404093940,1769819465640,162.12,0.00015,4]
[404093942,1769819611227,162.12,0.000147,7]
[404093943,1769819761877,162.12,0.000147,7]
[404093944,1769819909056,162.12,0.000147,7]
[404093945,1769820563127,-185.17316256,0.0001582,2]
[404093952,1769820633103,-500.0,0.0001582,2]
[404093956,1769820637912,-2874.23683744,0.0001582,2]
[404093957,1769820637923,-3559.41,0.0001587,2]
[404093958,1769820637932,-1200.0,0.00015919,2]
[404093959,1769820637943,-300.0,0.0001592,2]
[404093960,1769820637953,-3559.41,0.00015921,2]
[404093961,1769820637963,-3559.41,0.00015971,2]
[404093962,1769820637973,-798.66,0.00016016,2]
[404093963,1769820637983,-3559.41,0.00016022,2]
[404093964,1769820637993,-2370.22739171,0.00016025,2]
[404093965,1769820638014,-658.47843359,0.00016025,2]
[404094032,1769820640263,-421.205,0.00016025,2]
[404094033,1769820640275,-364.32753071,0.00016025,2]
[404094034,1769820640355,-435.74164399,0.00016025,2]
[404094035,1769820640364,-327.77734734,0.00016072,2]
[404094046,1769820644563,-3231.63265266,0.00016072,2]
[404094047,1769820644575,-873.44499432,0.00016123,2]
[404094064,1769820645942,-2685.96500568,0.00016123,2]
[404094065,1769820645952,-3559.41,0.00016173,2]
[404094066,1769820645963,-3559.41,0.00016224,2]
[404094067,1769820645973,-3559.41,0.00016274,2]
[404094068,1769820645983,-2236.74505022,0.00016315,2]
[404094069,1769820645993,-3559.41,0.00016325,2]
[404094070,1769820646002,-222.94203721,0.00016373,2]
[404094071,1769820646013,-178.28326226,0.00016373,2]
[404094072,1769820646023,-500.0,0.00016373,2]
[404094073,1769820646032,-500.0,0.00016373,2]
[404094074,1769820646043,-500.0,0.00016373,2]
[404094075,1769820646054,-500.0,0.00016373,2]
[404094076,1769820646064,-500.0,0.00016373,2]
[404094077,1769820646074,-500.0,0.00016373,2]
[404094078,1769820646084,-500.0,0.00016373,2]
[404094079,1769820646104,-500.0,0.00016373,2]
[404094080,1769820646118,-541.75073303,0.00016373,2]
[404094081,1769820646128,-500.0,0.00016373,2]
[404094082,1769820646137,-500.0,0.00016373,2]
[404094083,1769820646147,-519.79945563,0.00016373,2]
[404094084,1769820646156,-500.0,0.00016373,2]
[404094085,1769820646166,-500.0,0.00016373,2]
[404094086,1769820646175,-500.0,0.00016373,2]
[404094087,1769820646189,-500.0,0.00016373,2]
[404094088,1769820646198,-3559.41,0.00016375,2]
[404094089,1769820646208,-300.0,0.000164,2]
[404094090,1769820646218,-150.0,0.000164,2]
[404094091,1769820646228,-3559.41,0.00016426,2]
[404094092,1769820646237,-3559.41,0.00016476,2]
[404094093,1769820646247,-150.32293724,0.00016476,2]
[404094094,1769820646256,-150.0,0.00016478,2]
[404094095,1769820646266,-12000.0,0.000165,2]
[404094096,1769820646276,-3559.41,0.00016526,2]
[404094097,1769820646285,-3559.41,0.00016577,2]
[404094098,1769820646295,-3559.41,0.00016627,2]
[404094099,1769820646304,-266.82,0.00016649,2]
[404094100,1769820646314,-200.0,0.00016667,2]
[404094101,1769820646323,-3559.41,0.00016678,2]
[404094102,1769820646333,-519.8,0.00016708,2]
[404094103,1769820646342,-774.0541,0.00016719,2]
[404094104,1769820646352,-1717.0826,0.00016721,2]
[404094105,1769820646362,-3503.17,0.00016721,2]
[404094106,1769820646371,-3559.41,0.00016728,2]
[404094107,1769820646380,-288.32879,0.00016767,2]
[404094108,1769820646390,-151.0,0.00016767,2]
[404094109,1769820646399,-428.0,0.00016767,2]
[404094110,1769820646409,-3559.41,0.00016779,2]
[404094111,1769820646419,-535.078,0.00016811,2]
[404094112,1769820646428,-151.0,0.00016811,2]
[404094113,1769820646437,-485.25,0.00016818,2]
[404094114,1769820646446,-500.0,0.00016819,2]
[404094116,1769820646456,-500.0,0.00016819,2]
[404094118,1769820646465,-500.0,0.00016819,2]
[404094120,1769820646474,-500.0,0.00016819,2]
[404094122,1769820646484,-500.0,0.00016819,2]
[404094124,1769820646494,-549.60816946,0.00016819,2]
[404094125,1769820646503,-500.0,0.00016819,2]
[404094126,1769820646513,-500.0,0.00016819,2]
[404094127,1769820646522,-500.0,0.00016819,2]
[404094128,1769820646531,-500.0,0.00016819,2]
[404094129,1769820646540,-1013.72655464,0.0001682,5]
[404094130,1769820646549,-1013.72655464,0.0001682,5]
[404094131,1769820646559,-1095.41,0.0001682,2]
[404094132,1769820646568,-1095.41,0.0001682,2]
[404094133,1769820646577,-151.0,0.00016821,2]
[404094134,1769820646586,-1095.41,0.00016868,2]
[404094135,1769820646595,-151.0,0.00016869,2]
[404094136,1769820646605,-3375.0,0.00016869,2]
[404094137,1769820646614,-1502.0,0.00016874,2]
[404094138,1769820646623,-1502.0,0.00016874,2]
[404094139,1769820646633,-1502.0,0.00016874,2]
[404094140,1769820646642,-1502.0,0.00016874,2]
[404094141,1769820646654,-1502.0,0.00016874,2]
[404094142,1769820646664,-1502.0,0.00016874,2]
[404094143,1769820646672,-1502.0,0.00016874,2]
[404094144,1769820646681,-1502.0,0.00016874,2]
[404094145,1769820646692,-1502.0,0.00016874,2]
[404094146,1769820646701,-1502.0,0.00016874,2]
[404094147,1769820646711,-1502.0,0.00016874,2]
[404094148,1769820646721,-1502.0,0.00016874,2]
[404094149,1769820646731,-1502.0,0.00016874,2]
[404094150,1769820646741,-1502.0,0.00016874,2]
[404094151,1769820646750,-200.0,0.00016874,2]
[404094152,1769820646759,-2798.21493253,0.00016874,2]
[404094153,1769820646770,-613.8,0.00016879,2]
[404094154,1769820646781,-613.8,0.000169,2]
[404094155,1769820646790,-1000.0,0.00016921,2]
[404094156,1769820646801,-220.63691606,0.00016921,2]
[404094157,1769820646811,-1000.0,0.00016921,2]
[404094158,1769820646822,-1000.0,0.00016921,2]
[404094159,1769820646831,-1000.0,0.00016921,2]
[404094160,1769820646843,-463.7080185,0.00016921,2]
[404094161,1769820646854,-411.27458775,0.00016921,2]
[404094162,1769820646864,-500.0,0.00016921,2]
[404094163,1769820646874,-1000.0,0.00016921,2]
[404094164,1769820646884,-1000.0,0.00016921,2]
[404094165,1769820646893,-151.0,0.00016921,2]
[404094166,1769820646903,-500.0,0.00016932,2]
[404094167,1769820646912,-250.0,0.00017,2]
[404094168,1769820646922,-393.39,0.00017052,2]
[404094169,1769820646936,-485.25,0.00017092,2]
[404094170,1769820646946,-1013.72655464,0.00017098,5]
[404094171,1769820646955,-578.20924308,0.00017099,2]
[404094172,1769820646965,-123.04218204,0.00017099,2]
[404094173,1769820647056,-51.57700937,0.00017099,2]
[404094174,1769820647066,-721.12765535,0.00017099,2]
[404094175,1769820647075,-272.8683819,0.00017099,2]
[404094176,1769820647085,-322.6107,0.00017099,2]
[404094177,1769820647094,-854.2589148,0.00017099,2]
[404094178,1769820647104,-723.75966649,0.00017099,2]
[404094180,1769821335787,156.65825706,0.0002492,120]
[404094181,1769821337308,233.18793276,0.0002492,120]
[404094182,1769821385745,-166.66,0.00015766,2]
[404094183,1769821604119,-300.0,0.00015821,2]
[404094184,1769821604142,-575.3319,0.00015822,2]
[404094185,1769821604163,-3604.6681176,0.00015822,2]
[404094186,1769821757289,-4386.52745738,0.00015822,2]
[404094196,1769821832347,-300.0,0.00015911,2]
[404094197,1769821832356,-1200.0,0.00015911,2]
[404094198,1769821832366,-162.0,0.00016,2]
[404094199,1769821832375,-162.0,0.00016,2]
[404094200,1769821832384,-166.66,0.00016098,2]
[404094201,1769821832394,-314.95411442,0.00016173,2]
[404094202,1769821832403,-182.94,0.00016181,3]
[404094203,1769821832412,-779.24,0.00016185,2]
[404094204,1769821832421,-779.24,0.00016185,2]
[404094205,1769821832430,-779.24,0.00016185,2]
[404094206,1769821832440,-779.24,0.00016185,2]
[404094207,1769821832450,-779.24,0.00016185,2]
[404094208,1769821832459,-500.0,0.00016194,2]
[404094209,1769821832468,-239.42939961,0.00016194,2]
[404094210,1769821832477,-289.88907597,0.00016194,2]
[404094211,1769821832486,-561.06757438,0.00016194,2]
[404094212,1769821832497,-21196.91633541,0.00016195,2]
[404094213,1769821832511,-2279.85668093,0.00016195,2]
[404094214,1769821832526,-4452.66369481,0.00016195,2]
[404094215,1769821832538,-1597.08033178,0.00016195,2]
[404094216,1769821832563,-552.02375502,0.00016195,2]
[404094217,1769821832574,-863.34019556,0.00016195,2]
[404094218,1769821832587,-686.70131771,0.00016195,2]
[404094219,1769821832641,-443.16552937,0.00016195,2]
[404094220,1769821832660,-364.72373208,0.00016195,2]
[404094226,1769821838140,-11382.56719043,0.00016195,2]
[404094227,1769821838199,-339327.41932542,0.00016195,2]
[404094228,1769821838211,-1538.66320084,0.00016195,2]
[404094229,1769821838313,-4852.39229244,0.00016195,2]
[404094230,1769821838324,-696.6099996,0.00016195,2]
[404094231,1769821838427,-2878.12978853,0.00016195,2]
[404094340,1769821840445,-504.38,0.00016195,2]
[404094343,1769821840637,-640.31007691,0.00016195,2]
[404094347,1769821843751,-4451.14455791,0.00016195,2]
[404094348,1769821843764,-887.1555738,0.00016195,2]
[404094349,1769821843806,-564.07284703,0.00016195,2]
[404094350,1769821843865,-263.95605343,0.00016195,2]
[404094351,1769821843877,-291.46080067,0.00016195,2]
[404094352,1769821843889,-325.58015431,0.00016195,2]
[404094353,1769821844694,-497.77777976,0.00016195,2]
[404094366,1769821846176,-597.72123317,0.00016195,2]
[404094367,1769821846236,-386.67372848,0.00016195,2]
[404094368,1769821846247,-3301.03524652,0.00016195,2]
[404094369,1769821846475,-26058.54784683,0.00016195,2]
[404094387,1769822848239,250.0,0.00015645,2]
[404094388,1769822881107,8153.93,0.00015321,2]
[404094389,1769822917984,20000.0,1.7e-05,5]
[404094390,1769822967817,4803.37,0.00013162,2]
[404094391,1769823009967,185.33120067,0.00012304,2]
[404094392,1769823010204,228.77028933,0.00012304,2]
[404094393,1769823010232,98.17591665,0.00012304,2]
[404094394,1769823010660,489.09197078,0.00012304,2]
[404094395,1769823011372,661.7556,0.00012304,2]
[404094411,1769823032772,-499.50294632,0.00015995,2]
[404094412,1769823032787,-1789.55705368,0.00015995,2]
[404094413,1769823032796,-200.0,0.00015995,2]
[404094414,1769823032806,-150.0,0.00016026,2]
[404094415,1769823032815,-150.0,0.00016026,2]
[404094416,1769823032824,-150.0,0.00016026,2]
[404094417,1769823032835,-150.0,0.00016026,2]
[404094418,1769823032845,-152.03,0.00016036,2]
[404094419,1769823032854,-1537.64,0.00016061,2]
[404094420,1769823032863,-150.0,0.00016081,2]
[404094421,1769823032873,-206.9937534,0.00016081,2]
[404094422,1769823032883,-150.0,0.00016081,2]
[404094423,1769823032900,-32.23556265,0.00016081,2]
[404094424,1769823032930,-117.76443735,0.00016081,2]
[404094425,1769823032939,-1200.0,0.00016094,2]
[404094426,1769823032949,-183.48355865,0.00016094,2]
[404094427,1769823032960,-116.51644135,0.00016094,2]
[404094428,1769823032969,-152.13538667,0.00016095,2]
[404094429,1769823032979,-3965.88709764,0.00016095,2]
[404094430,1769823032988,-150.0,0.00016099,2]
[404094431,1769823032998,-150.0,0.00016099,2]
[404094432,1769823033007,-150.0,0.00016099,2]
[404094433,1769823033016,-150.0,0.00016099,2]
[404094434,1769823033026,-150.0,0.00016099,2]
[404094435,1769823033035,-150.0,0.00016099,2]
[404094436,1769823033044,-206.16390379,0.00016136,2]
[404094437,1769823033053,-208.9097512,0.00016136,2]
[404094438,1769823033063,-216.19233989,0.00016136,2]
[404094439,1769823033072,-150.0,0.00016154,2]
[404094440,1769823033083,-150.0,0.00016154,2]
[404094441,1769823033093,-150.0,0.00016154,2]
[404094442,1769823033102,-150.0,0.00016154,2]
[404094443,1769823033111,-150.0,0.00016154,2]
[404094444,1769823033122,-371.49990503,0.00016185,2]
[404094445,1769823033132,-508.55525493,0.00016185,2]
[404094446,1769823033141,-151.0,0.00016185,2]
[404094447,1769823033150,-298.89749949,0.00016185,2]
[404094448,1769823033159,-500.0,0.00016194,2]
[404094449,1769823033169,-500.0,0.00016194,2]
[404094450,1769823033178,-500.0,0.00016194,2]
[404094451,1769823033187,-500.0,0.00016194,2]
[404094452,1769823033197,-500.0,0.00016194,2]
[404094453,1769823033206,-500.0,0.00016194,2]
[404094454,1769823033215,-263.44068873,0.00016194,2]
[404094455,1769823033224,-1502.0,0.00016195,2]
[404094456,1769823033234,-1502.0,0.00016195,2]
[404094457,1769823033244,-200.0,0.00016209,2]
[404094458,1769823033253,-200.0,0.00016209,2]
[404094459,1769823033263,-200.0,0.00016209,2]
[404094460,1769823033272,-200.0,0.00016209,2]
[404094461,1769823033282,-200.0,0.00016209,2]
[404094462,1769823033293,-167.24,0.00016235,2]
[404094463,1769823033302,-500.0,0.00016249,3]
[404094464,1769823033311,-500.0,0.00016267,2]
[404094465,1769823033321,-444.87,0.00016267,2]
[404094466,1769823033331,-150.0,0.00016284,2]
[404094467,1769823033341,-1500.0,0.00016295,2]
[404094468,1769823033351,-3965.8870976,0.00016296,2]
[404094469,1769823033361,-162.0,0.000163,2]
[404094470,1769823033371,-162.0,0.000163,2]
[404094471,1769823033380,-162.24,0.000163,2]
[404094472,1769823033390,-613.8,0.000163,2]
[404094473,1769823033399,-613.8,0.000163,2]
[404094474,1769823033409,-2315.82,0.000163,2]
[404094475,1769823033418,-1233.02,0.000163,2]
[404094476,1769823033427,-613.8,0.000163,2]
[404094477,1769823033442,-200.0,0.0001631,2]
[404094478,1769823033452,-3213.23,0.0001636,2]
[404094479,1769823033464,-500.0,0.00016373,2]
[404094480,1769823033475,-582.34950464,0.00016373,2]
[404094481,1769823033486,-500.0,0.00016373,2]
[404094482,1769823033495,-169.47739756,0.00016373,2]
[404094483,1769823033506,-500.0,0.00016373,2]
[404094484,1769823033517,-354.38080813,0.00016373,2]
[404094485,1769823033526,-500.0,0.00016373,2]
[404094486,1769823033535,-503.42089099,0.00016373,2]
[404094487,1769823033543,-500.0,0.00016373,2]
[404094488,1769823033552,-162.0,0.000164,2]
[404094489,1769823033561,-162.0,0.000164,2]
[404094490,1769823033571,-151.26,0.000164,2]
[404094491,1769823033580,-1233.02,0.000164,2]
[404094492,1769823033589,-151.2,0.000164,2]
[404094493,1769823033599,-150.0,0.000164,2]
[404094494,1769823033609,-150.0,0.000164,2]
[404094495,1769823033618,-150.0,0.000164,2]
[404094496,1769823033627,-613.8,0.000164,2]
[404094497,1769823033637,-344.72,0.000164,2]
[404094498,1769823033646,-613.8,0.000164,2]
[404094499,1769823033656,-150.64,0.000164,2]
[404094500,1769823033665,-613.8,0.000164,2]
[404094501,1769823033675,-300.0,0.000164,2]
[404094502,1769823033684,-613.8,0.000164,2]
[404094503,1769823033693,-613.8,0.000164,2]
[404094504,1769823033702,-168.0,0.00016425,2]
[404094505,1769823033712,-166.66,0.0001643,2]
[404094506,1769823033721,-151.0,0.00016435,2]
[404094507,1769823033730,-151.0,0.00016435,2]
[404094508,1769823033739,-291.15,0.00016438,2]
[404094509,1769823033748,-958.48,0.00016438,2]
[404094510,1769823033758,-500.0,0.00016438,2]
[404094511,1769823033767,-500.0,0.00016438,2]
[404094512,1769823033777,-500.0,0.00016438,2]
[404094513,1769823033786,-500.0,0.00016438,2]
[404094514,1769823033795,-500.0,0.00016438,2]
[404094515,1769823033806,-500.0,0.00016438,2]
[404094516,1769823033815,-500.0,0.00016438,2]
[404094517,1769823033828,-500.0,0.00016438,2]
[404094518,1769823033839,-500.0,0.00016438,2]
[404094519,1769823033850,-500.0,0.00016438,2]
[404094520,1769823033859,-500.0,0.00016438,2]
[404094521,1769823033868,-500.0,0.00016438,2]
[404094522,1769823033879,-500.0,0.00016438,2]
[404094523,1769823033889,-188.05140849,0.00016438,2]
[404094524,1769823033898,-500.0,0.00016438,2]
[404094525,1769823033909,-500.0,0.00016438,2]
[404094526,1769823033918,-500.0,0.00016438,2]
[404094527,1769823033927,-500.0,0.00016438,2]
[404094528,1769823033937,-500.0,0.00016438,2]
[404094529,1769823033946,-500.0,0.00016438,2]
[404094530,1769823033955,-500.0,0.00016438,2]
[404094531,1769823033964,-500.0,0.00016438,2]
[404094532,1769823033975,-500.0,0.00016438,2]
[404094533,1769823033984,-500.0,0.00016438,2]
[404094534,1769823033994,-500.0,0.00016438,2]
[404094535,1769823034003,-500.0,0.00016438,2]
[404094536,1769823034013,-500.0,0.00016438,2]
[404094537,1769823034022,-500.0,0.00016438,2]
[404094538,1769823034032,-500.0,0.00016438,2]
[404094539,1769823034041,-500.0,0.00016438,2]
[404094540,1769823034050,-500.0,0.00016438,2]
[404094541,1769823034059,-500.0,0.00016438,2]
[404094542,1769823034068,-500.0,0.00016438,2]
[404094543,1769823034078,-500.0,0.00016438,2]
[404094544,1769823034087,-500.0,0.00016438,2]
[404094545,1769823034096,-500.0,0.00016438,2]
[404094546,1769823034106,-500.0,0.00016438,2]
[404094547,1769823034115,-500.0,0.00016438,2]
[404094548,1769823034125,-500.0,0.00016438,2]
[404094549,1769823034135,-500.0,0.00016438,2]
[404094550,1769823034144,-500.0,0.00016438,2]
[404094551,1769823034153,-3965.8870976,0.00016496,2]
[404094552,1769823034163,-172.36,0.000165,2]
[404094553,1769823034172,-168.0,0.00016594,2]
[404094554,1769823034182,-168.0,0.00016618,2]
[404094555,1769823034191,-1000.0,0.00016623,2]
[404094556,1769823034200,-152.03,0.00016637,2]
[404094557,1769823034209,-3965.8870976,0.00016697,2]
[404094558,1769823034219,-291.15,0.00016712,2]
[404094559,1769823034227,-222.0,0.0001672,2]
[404094560,1769823034237,-1798.0,0.00016721,2]
[404094561,1769823034247,-168.0,0.00016735,2]
[404094562,1769823034256,-151.0,0.00016748,2]
[404094563,1769823034265,-151.0,0.00016748,2]
[404094564,1769823034275,-200.312144,0.00016748,2]
[404094565,1769823034284,-322.6107,0.00016748,2]
[404094566,1769823034293,-578.20924308,0.00016748,2]
[404094567,1769823034302,-1000.0,0.00016748,2]
[404094568,1769823034311,-1000.0,0.00016748,2]
[404094569,1769823034320,-250.0,0.00016748,2]
[404094570,1769823034330,-174.61919141,0.00016748,2]
[404094571,1769823034339,-721.12765535,0.00016748,2]
[404094572,1769823034349,-2062.37461804,0.00016748,2]
[404094573,1769823034358,-272.8683819,0.00016748,2]
[404094574,1769823034368,-500.0,0.00016748,2]
[404094575,1769823034377,-500.0,0.00016748,2]
[404094576,1769823034386,-500.0,0.00016748,2]
[404094577,1769823034396,-500.0,0.00016748,2]
[404094578,1769823034406,-500.0,0.00016748,2]
[404094579,1769823034427,-500.0,0.00016748,2]
[404094580,1769823034452,-500.0,0.00016748,2]
[404094581,1769823034469,-500.0,0.00016748,2]
[404094582,1769823034489,-500.0,0.00016748,2]
[404094583,1769823034508,-500.0,0.00016748,2]
[404094584,1769823034529,-314.35815498,0.00016748,2]
[404094585,1769823034542,-1000.0,0.00016748,2]
[404094586,1769823034560,-1000.0,0.00016748,2]
[404094587,1769823034577,-209.40437684,0.00016748,2]
[404094588,1769823034595,-1000.0,0.00016748,2]
[404094589,1769823034613,-652.32548751,0.00016748,2]
[404094590,1769823034630,-151.0,0.00016748,2]
[404094591,1769823034648,-500.0,0.00016748,2]
[404094592,1769823034669,-579.52737061,0.00016748,2]
[404094593,1769823034688,-854.2589148,0.00016748,2]
[404094594,1769823034703,-209.40437685,0.00016748,2]
[404094595,1769823034716,-708.96052804,0.00016748,2]
[404094596,1769823034738,-168.0,0.00016761,2]
[404094597,1769823034750,-166.66,0.00016762,2]
[404094598,1769823034769,-217.15233878,0.00016803,2]
[404094599,1769823034784,-168.0,0.00016818,2]
[404094600,1769823034796,-225.18697532,0.00016858,2]
[404094601,1769823034811,-1365.88374163,0.00016865,2]
[404094602,1769823034872,-24.11625837,0.00016865,2]
[404094603,1769823034891,-444.11314319,0.00016897,2]
[404094604,1769823034913,-3521.77395441,0.00016897,2]
[404094605,1769823034930,-162.0,0.000169,2]
[404094606,1769823034946,-162.0,0.000169,2]
[404094607,1769823034963,-233.51889341,0.00016913,2]
[404094608,1769823034980,-614.81530258,0.00016921,2]
[404094609,1769823034996,-1000.0,0.00016921,2]
[404094610,1769823035011,-1006.67908735,0.00016921,2]
[404094611,1769823035026,-1407.56303071,0.00016922,2]
[404094615,1769823038887,-150.0,0.00016026,2]
[404094616,1769823038897,-749.3096472,0.00016801,2]
[404094617,1769823038907,-3100.6903528,0.00016922,2]
[404094618,1769823038919,-694.84877467,0.00016922,2]
[404094619,1769823038940,-8608.54535819,0.00016922,2]
[404094622,1769823040443,-151.0,0.00016436,2]
[404094623,1769823040452,-151.0,0.00016436,2]
[404094624,1769823040465,-4331.99248363,0.00016922,2]
[404094625,1769823040474,-168.0,0.00016923,2]
[404094626,1769823040485,-200.0,0.0001693,2]
[404094627,1769823040495,-242.15909246,0.00016968,2]
[404094628,1769823040505,-246.0,0.00016971,2]
[404094629,1769823040516,-291.15,0.00016986,2]
[404094630,1769823040530,-151.0,0.00016986,2]
[404094631,1769823040542,-168.0,0.00016992,2]
[404094632,1769823040552,-250.0,0.00017,2]
[404094633,1769823040562,-152.14755189,0.00017005,2]
[404094634,1769823040573,-168.0,0.00017016,2]
[404094635,1769823040582,-1233.02,0.00017017,2]
[404094636,1769823040592,-1233.02,0.00017017,2]
[404094637,1769823040601,-1233.02,0.00017017,2]
[404094638,1769823040611,-1233.02,0.00017017,2]
[404094639,1769823040620,-1233.02,0.00017017,2]
[404094640,1769823040630,-1233.02,0.00017017,2]
[404094641,1769823040639,-1233.02,0.00017017,2]
[404094642,1769823040648,-251.11897888,0.00017023,2]
[404094643,1769823040659,-200.0,0.00017025,2]
[404094644,1769823040668,-301.61,0.0001703,2]
[404094645,1769823040678,-300.0,0.0001703,2]
[404094646,1769823040687,-260.4103811,0.00017078,2]
[404094647,1769823040697,-444.87,0.0001708,2]
[404094648,1769823040706,-246.0,0.00017088,2]
[404094649,1769823040720,-158.82094085,0.00017092,2]
[404094650,1769823040729,-166.66,0.00017093,2]
[404094651,1769823040739,-3965.8870976,0.00017098,2]
[404094652,1769823040750,-151.00000001,0.00017099,2]
[404094653,1769823040763,-6576.0,0.00017126,2]
[404094654,1769823040772,-166.66,0.00017131,2]
[404094655,1769823040782,-270.0455652,0.00017133,2]
[404094656,1769823040792,-200.0,0.00017164,2]
[404094657,1769823040802,-280.03725112,0.00017188,2]
[404094658,1769823040811,-246.0,0.00017202,2]
[404094659,1769823040821,-246.0,0.00017203,2]
[404094660,1769823040832,-246.0,0.00017238,2]
[404094661,1769823040841,-152.03,0.00017239,2]
[404094662,1769823040852,-290.39862941,0.00017243,2]
[404094663,1769823040861,-291.15,0.0001726,2]
[404094664,1769823040871,-420.0,0.00017275,2]
[404094665,1769823040881,-181.08010149,0.00017296,2]
[404094666,1769823040891,-885.86649465,0.00017296,2]
[404094667,1769823040900,-301.1433787,0.00017298,2]
[404094668,1769823040910,-3965.8870976,0.00017298,2]
[404094669,1769823040922,-400.0,0.000173,6]
[404094670,1769823040932,-246.0,0.0001731,2]
[404094671,1769823040942,-379.16,0.00017386,2]
[404094672,1769823040952,-151.0,0.000174,2]
[404094673,1769823040962,-170.940896,0.000174,2]
[404094674,1769823040972,-800.0,0.000174,6]
[404094675,1769823040982,-246.0,0.00017417,2]
[404094676,1769823040992,-166.66,0.00017425,2]
[404094677,1769823041002,-1500.0,0.00017468,2]
[404094678,1769823041013,-200.0,0.00017487,2]
[404094679,1769823041024,-3965.8870976,0.00017499,2]
[404094680,1769823041034,-12205.37473376,0.000175,3]